bitfinex-derivatives/quotes_BTCF0:USTF0_20250630
["timestamp","ask_amount","ask_price","bid_price","bid_amount"]
[1751295283033,0.72109516,106980.0,106970.0,2.0769919]
[1751295283628,0.72109516,106980.0,106970.0,2.00242561]
[1751295284037,0.72109516,106980.0,106970.0,2.04382561]
[1751295285139,0.72109516,106980.0,106970.0,2.14382561]
[1751295285435,0.72109516,106980.0,106970.0,2.39382561]
[1751295285639,0.72109516,106980.0,106970.0,2.4683919]
[1751295286036,0.72109516,106980.0,106970.0,2.39382561]
[1751295287934,0.72109516,106980.0,106970.0,2.4683919]
[1751295288141,0.72109516,106980.0,106970.0,2.39382561]
[1751295288834,0.72109516,106980.0,106970.0,2.51719005]
[1751295289234,0.66500275,106980.0,106970.0,2.51719005]
[1751295289732,0.58087058,106980.0,106970.0,2.42402033]
[1751295289939,0.58087058,106980.0,106970.0,2.55444684]
[1751295290240,0.58087058,106980.0,106970.0,2.42402033]
[1751295290445,0.58087058,106980.0,106970.0,2.55449643]
[1751295290837,0.54675598,106980.0,106970.0,2.55449643]
[1751295291037,0.51316938,106980.0,106970.0,2.55449643]
[1751295291337,0.33514588,106980.0,106970.0,2.94397621]
[1751295291541,0.27268188,106980.0,106970.0,2.94397621]
[1751295291741,0.12638738,106980.0,106970.0,2.94397621]
[1751295291942,0.04369128,106980.0,106970.0,2.94397621]
[1751295292151,8e-08,106980.0,106970.0,2.92949102]
[1751295294644,8e-08,106980.0,106970.0,2.92477102]
[1751295294850,8e-08,106980.0,106970.0,2.03893124]
[1751295295049,8e-08,106980.0,106970.0,2.83081124]
[1751295295348,8e-08,106980.0,106970.0,2.58073124]
[1751295296244,8e-08,106980.0,106970.0,2.75547124]
[1751295296450,0.03970008,106980.0,106970.0,2.62499514]
[1751295296644,0.07780008,106980.0,106970.0,2.71807469]
[1751295297651,0.07780008,106980.0,106970.0,2.62499514]
[1751295298151,0.07780008,106980.0,106970.0,2.62407514]
[1751295298542,0.11640008,106980.0,106970.0,2.62407514]
[1751295298750,0.30330548,106980.0,106970.0,2.62407514]
[1751295299048,0.11640008,106980.0,106970.0,2.71714416]
[1751295299748,0.03226565,106980.0,106970.0,2.71714416]
[1751295300341,0.03226565,106980.0,106970.0,2.09218416]
[1751295300543,0.21917135,106980.0,106970.0,2.05138416]
[1751295300844,0.03226565,106980.0,106970.0,2.67578416]
[1751295301044,0.03226565,106980.0,106970.0,2.75598416]
[1751295301245,0.3280458,107000.0,106990.0,0.1868882]
[1751295301446,0.32692707,107000.0,106990.0,1.65206827]
[1751295301749,0.32692707,107000.0,106990.0,1.27661119]
[1751295302051,0.40692707,107000.0,106990.0,0.72892299]
[1751295302648,0.41192707,107000.0,106990.0,1.27861119]
[1751295302954,0.53402707,107000.0,106990.0,1.27861119]
[1751295303247,0.4171,107000.0,106990.0,1.27861119]
[1751295303441,0.1271,107000.0,106990.0,1.7481]
[1751295304049,0.1271,107000.0,106990.0,1.82254901]
[1751295304243,0.1271,107000.0,106990.0,1.83714329]
[1751295304641,0.1271,107000.0,106990.0,1.73249956]
[1751295304842,0.1271,107000.0,106990.0,1.42452154]
[1751295305049,0.1271,107000.0,106990.0,1.79997862]
[1751295306049,0.005,107000.0,106990.0,1.79997862]
[1751295306244,0.1199,107020.0,107010.0,0.1868533]
[1751295306448,0.11690166,107020.0,107010.0,2.19002884]
[1751295306641,0.11690166,107020.0,107010.0,2.22792884]
[1751295306943,0.30373756,107020.0,107010.0,0.7652807]
[1751295307341,0.30373756,107020.0,107010.0,1.7398539]
[1751295307544,0.30373756,107020.0,107010.0,2.11531098]
[1751295307749,0.30373756,107020.0,107010.0,2.11583098]
[1751295307946,0.30373756,107020.0,107010.0,0.9521339]
[1751295308151,0.30373756,107020.0,107010.0,1.7403739]
[1751295308752,0.30373756,107020.0,107010.0,1.3795739]
[1751295308944,0.30373756,107020.0,107010.0,1.52834151]
[1751295309138,0.30373756,107020.0,107010.0,1.34148831]
[1751295309351,0.30373756,107020.0,107010.0,1.34120831]
[1751295309549,0.33373756,107020.0,107010.0,1.34092831]
[1751295309749,0.33373756,107020.0,107010.0,0.37930161]
[1751295309953,0.33373756,107020.0,107010.0,1.16690161]
[1751295310345,0.33373756,107020.0,107010.0,1.52770161]
[1751295310651,0.33773756,107020.0,107010.0,1.17790161]
[1751295310850,0.33773756,107020.0,107010.0,1.10345649]
[1751295311048,0.33773756,107020.0,107010.0,1.46377649]
[1751295311352,0.91853756,107020.0,107010.0,0.90136155]
[1751295311546,1.29399464,107020.0,107010.0,0.11240155]
[1751295311856,1.29399464,107020.0,107010.0,0.95506941]
[1751295311857,1.74792295,107020.0,107010.0,0.95506941]
[1751295312152,1.74792295,107020.0,107010.0,0.89920155]
[1751295312357,1.74792295,107020.0,107010.0,0.95507342]
[1751295312543,1.74792295,107020.0,107010.0,0.89920155]
[1751295312747,1.37246587,107020.0,107010.0,0.89920155]
[1751295312940,1.74792295,107020.0,107010.0,0.16827355]
[1751295313248,1.74792295,107020.0,107010.0,0.89872155]
[1751295313449,1.76684013,107020.0,107010.0,0.89872155]
[1751295313649,1.74792295,107020.0,107010.0,0.89872155]
[1751295313845,1.37246587,107020.0,107010.0,0.11240155]
[1751295314155,1.74792295,107020.0,107010.0,0.89844155]
[1751295314450,0.1868533,107010.0,107000.0,0.07444512]
[1751295314753,0.1868708,107000.0,106990.0,1.70132512]
[1751295314955,1.35272788,107000.0,106990.0,0.07444512]
[1751295315148,0.1868882,106990.0,106980.0,0.27997092]
[1751295315349,0.3768882,106990.0,106980.0,0.27885219]
[1751295315554,0.3768882,106990.0,106980.0,0.09195029]
[1751295315952,0.3768882,106990.0,106980.0,0.27885599]
[1751295316153,0.29274862,106990.0,106980.0,1.13768003]
[1751295316351,0.42274862,106990.0,106980.0,1.17620584]
[1751295316552,0.42774862,106990.0,106980.0,1.18220584]
[1751295316956,0.42774862,106990.0,106980.0,1.19680147]
[1751295317559,0.42774862,106990.0,106980.0,1.00989577]
[1751295317764,0.42774862,106990.0,106980.0,0.22461577]
[1751295318057,0.42774862,106990.0,106980.0,1.19668147]
[1751295318357,0.46824862,106990.0,106980.0,1.19668147]
[1751295318556,0.20824862,106990.0,106980.0,1.19668147]
[1751295318757,0.20824862,106990.0,106980.0,1.06620537]
[1751295318960,0.43824862,106990.0,106980.0,0.09413967]
[1751295319252,0.43824862,106990.0,106980.0,1.06548537]
[1751295319757,0.21824862,106990.0,106980.0,1.80174245]
[1751295319951,0.20824862,106990.0,106980.0,1.80174245]
[1751295320545,0.18824862,106990.0,106980.0,1.84044245]
[1751295320760,0.005,106990.0,106980.0,1.8946174]
[1751295320959,0.1918882,106990.0,106980.0,1.8946174]
[1751295322167,0.005,106990.0,106980.0,1.8946174]
[1751295322354,0.4051163,107010.0,107000.0,0.1868707]
[1751295322549,0.01704031,107020.0,107010.0,0.1868533]
[1751295322550,0.29730891,107020.0,107010.0,0.1868533]
[1751295322756,0.3188686,107020.0,107010.0,0.93771162]
[1751295322956,0.3188686,107020.0,107010.0,1.01631162]
[1751295323155,0.3188686,107020.0,107010.0,1.79923162]
[1751295323657,0.3228686,107020.0,107010.0,1.84083162]
[1751295324256,0.3528686,107020.0,107010.0,1.84083162]
[1751295324560,0.034,107020.0,107010.0,1.84083162]
[1751295324771,0.004,107020.0,107010.0,1.84083162]
[1751295325065,0.004,107020.0,107010.0,1.9154379]
[1751295326657,0.001,107030.0,107020.0,0.1868359]
[1751295326959,0.001,107030.0,107020.0,1.086585]
[1751295327762,0.005,107030.0,107020.0,1.091585]
[1751295327965,0.005,107030.0,107020.0,1.09563904]
[1751295328660,0.005,107030.0,107020.0,1.12868703]
[1751295328957,0.005,107030.0,107020.0,1.05408075]
[1751295329160,0.005,107030.0,107020.0,1.14734212]
[1751295329677,0.005,107030.0,107020.0,0.77188504]
[1751295329966,0.1918183,107030.0,107020.0,1.14734212]
[1751295330464,0.1918183,107030.0,107020.0,1.92890212]
[1751295330972,0.005,107030.0,107020.0,1.92890212]
[1751295331466,0.005,107030.0,107020.0,1.83564075]
[1751295331655,0.005,107030.0,107020.0,1.05408075]
[1751295331656,0.1918184,107030.0,107020.0,1.05408075]
[1751295331858,0.1918184,107030.0,107020.0,1.83540075]
[1751295332360,0.005,107030.0,107020.0,1.8356149]
[1751295333668,0.005,107030.0,107020.0,1.91010603]
[1751295334067,0.1918184,107030.0,107020.0,1.91010603]
[1751295334460,0.1918184,107030.0,107020.0,0.75332895]
[1751295334764,0.1918184,107030.0,107020.0,0.72028096]
[1751295334959,0.2699184,107030.0,107020.0,1.34792973]
[1751295335257,0.2899184,107030.0,107020.0,0.56808973]
[1751295335463,0.2899184,107030.0,107020.0,1.42242086]
[1751295335660,0.2699184,107030.0,107020.0,1.42242086]
[1751295335864,0.4799184,107030.0,107020.0,1.42263119]
[1751295336259,0.4799184,107030.0,107020.0,1.41775119]
[1751295336460,0.2799184,107030.0,107020.0,1.79320827]
[1751295336767,0.2299184,107030.0,107020.0,1.79320827]
[1751295336960,0.2299184,107030.0,107020.0,1.86980827]
[1751295337360,0.2799184,107030.0,107020.0,1.86980827]
[1751295338366,0.2418184,107030.0,107020.0,1.86980827]
[1751295338570,0.1918184,107030.0,107020.0,0.71939119]
[1751295338768,0.1918184,107030.0,107020.0,1.86896827]
[1751295340173,0.1918184,107030.0,107020.0,1.49351119]
[1751295340469,0.1918184,107030.0,107020.0,1.86896827]
[1751295341061,0.2418184,107030.0,107020.0,1.86896827]
[1751295341869,0.1918184,107030.0,107020.0,1.86896827]
[1751295342666,0.01705673,107040.0,107030.0,0.1868184]
[1751295342861,0.3575957,107050.0,107040.0,0.2801783]
[1751295343060,0.3675957,107050.0,107040.0,1.8448257]
[1751295343257,0.3575957,107050.0,107040.0,1.8448257]
[1751295343467,0.4275957,107050.0,107040.0,1.46936862]
[1751295343868,0.3874957,107050.0,107040.0,1.8448257]
[1751295344069,0.4341951,107050.0,107040.0,1.83569358]
[1751295344267,0.4341951,107050.0,107040.0,1.96731122]
[1751295344463,0.4275957,107050.0,107040.0,1.5360365]
[1751295344964,0.2641997,107050.0,107040.0,1.2310556]
[1751295345166,0.0373,107050.0,107040.0,1.96731268]
[1751295345361,0.0403,107050.0,107040.0,2.04992164]
[1751295345963,0.0403,107050.0,107040.0,2.06859367]
[1751295345964,0.003,107050.0,107040.0,2.06859367]
[1751295346472,0.0785,107060.0,107040.0,2.72277017]
[1751295346660,0.0785,107060.0,107050.0,0.97884648]
[1751295346867,0.225266,107060.0,107050.0,1.05714648]
[1751295347067,0.0385,107060.0,107050.0,1.09444648]
[1751295347270,0.225266,107060.0,107050.0,1.09444648]
[1751295347473,0.225266,107060.0,107050.0,1.12713932]
[1751295347665,0.275266,107060.0,107050.0,0.75168224]
[1751295347868,0.314266,107060.0,107050.0,1.48702224]
[1751295348074,0.314266,107060.0,107050.0,1.44862224]
[1751295348470,0.315266,107060.0,107050.0,1.45162224]
[1751295349172,0.315266,107060.0,107050.0,1.3789894]
[1751295349369,0.315266,107060.0,107050.0,1.3231835]
[1751295350169,0.2652661,107060.0,107050.0,1.77313171]
[1751295350578,0.2652661,107060.0,107050.0,1.77265171]
[1751295350773,0.2652661,107060.0,107050.0,1.39719463]
[1751295351077,0.2652661,107060.0,107050.0,1.43016997]
[1751295351583,0.3152661,107060.0,107050.0,1.43016997]
[1751295352272,0.3152661,107060.0,107050.0,1.80562705]
[1751295352478,0.3152661,107060.0,107050.0,1.73113592]
[1751295352675,0.3152661,107060.0,107050.0,1.0094869]
[1751295353378,0.2652661,107060.0,107050.0,1.0094869]
[1751295353581,0.3252661,107060.0,107050.0,1.0094869]
[1751295353879,0.3252661,107060.0,107050.0,1.3702869]
[1751295354177,0.3252661,107060.0,107050.0,1.3697669]
[1751295354477,0.3252661,107060.0,107050.0,0.5992079]
[1751295354677,0.3252661,107060.0,107050.0,0.56623256]
[1751295354874,0.3252661,107060.0,107050.0,1.33623256]
[1751295355173,0.2652661,107060.0,107050.0,1.33623256]
[1751295355366,0.5352661,107060.0,107050.0,1.33623256]
[1751295356273,0.5352661,107060.0,107050.0,0.97543256]
[1751295357774,0.5352661,107060.0,107050.0,1.33623256]
[1751295358274,0.2952661,107060.0,107050.0,1.33623256]
[1751295359074,0.2952661,107060.0,107050.0,1.41072369]
[1751295360876,0.002,107060.0,107050.0,1.78758964]
[1751295361076,0.002,107060.0,107050.0,1.88085101]
[1751295361472,0.98092094,107070.0,107060.0,0.186767]
[1751295361678,0.98092094,107070.0,107060.0,1.09992408]
[1751295361981,0.98092094,107070.0,107060.0,1.70500018]
[1751295362481,0.98092094,107070.0,107060.0,1.70600018]
[1751295362482,0.98192094,107070.0,107060.0,1.70600018]
[1751295363072,0.84082894,107070.0,107060.0,1.57452408]
[1751295363272,0.84182894,107070.0,107060.0,1.70775359]
[1751295363475,0.84182894,107070.0,107060.0,1.27095359]
[1751295363683,0.84182894,107070.0,107060.0,2.03232045]
[1751295363882,1.02857854,107070.0,107060.0,0.88846337]
[1751295364077,1.02857854,107070.0,107060.0,1.65679055]
[1751295364274,1.06617854,107070.0,107060.0,1.90201812]
[1751295364782,0.84182894,107070.0,107060.0,1.90201812]
[1751295365674,0.84182894,107070.0,107060.0,1.80904408]
[1751295365883,0.84182894,107070.0,107060.0,1.13365489]
[1751295366076,0.84182894,107070.0,107060.0,1.90205489]
[1751295366882,0.84082894,107070.0,107060.0,1.89905489]
[1751295367083,0.84482894,107070.0,107060.0,2.01305489]
[1751295367287,0.84482894,107070.0,107060.0,1.92012408]
[1751295367493,0.84082894,107070.0,107060.0,2.12925703]
[1751295367785,0.84282894,107070.0,107060.0,1.87635359]
[1751295367980,0.84282894,107070.0,107060.0,2.59795359]
[1751295368176,0.84282894,107070.0,107060.0,1.82955359]
[1751295368372,0.84282894,107070.0,107060.0,2.68764288]
[1751295368578,0.84282894,107070.0,107060.0,2.55741337]
[1751295369684,0.84282894,107070.0,107060.0,1.79221337]
[1751295369986,0.84282894,107070.0,107060.0,2.27740408]
[1751295370188,0.84282894,107070.0,107060.0,2.25172332]
[1751295371977,0.84282894,107070.0,107060.0,1.64116332]
[1751295372181,0.84282894,107070.0,107060.0,2.25108332]
[1751295372682,0.84282894,107070.0,107060.0,1.48684332]
[1751295372885,0.84282894,107070.0,107060.0,2.25064332]
[1751295373586,0.84282894,107070.0,107060.0,2.53744332]
[1751295373791,0.84282894,107070.0,107060.0,2.55652528]
[1751295373792,0.68081224,107070.0,107060.0,2.55652528]
[1751295373990,0.001,107090.0,107080.0,0.1867325]
[1751295374190,0.001,107090.0,107080.0,2.06253302]
[1751295374487,0.001,107090.0,107080.0,2.25375818]
[1751295374690,0.001,107090.0,107080.0,2.17943302]
[1751295375077,0.001,107090.0,107080.0,2.25375656]
[1751295375279,0.001,107090.0,107080.0,2.44665997]
[1751295375480,0.003,107090.0,107080.0,2.37333643]
[1751295375677,0.05894569,107120.0,107110.0,0.1866802]
[1751295375981,0.01779594,107120.0,107110.0,1.75121153]
[1751295376287,0.01779594,107120.0,107110.0,1.78441655]
[1751295376481,0.01779594,107120.0,107110.0,1.82221655]
[1751295376789,0.01779594,107120.0,107110.0,1.79434473]
[1751295376978,0.20445864,107120.0,107110.0,1.90391359]
[1751295377187,0.09879594,107120.0,107110.0,1.82261359]
[1751295377384,0.09879594,107120.0,107110.0,1.79474473]
[1751295377580,0.00175025,107120.0,107110.0,1.80938576]
[1751295377883,0.00175025,107120.0,107110.0,1.90866698]
[1751295378589,0.00175025,107120.0,107110.0,2.00866698]
[1751295379290,0.00175025,107120.0,107110.0,2.00865111]
[1751295380082,0.00075025,107120.0,107110.0,2.00865111]
[1751295380288,0.00075025,107120.0,107110.0,1.90965111]
[1751295380981,0.00075025,107120.0,107110.0,1.98386438]
[1751295381489,0.18741295,107120.0,107110.0,0.7272673]
[1751295381687,0.64047003,107120.0,107110.0,1.47454335]
[1751295381991,0.30571295,107120.0,107110.0,0.71266335]
[1751295382195,0.69117003,107120.0,107110.0,1.25350417]
[1751295382391,0.69117003,107120.0,107110.0,1.44018437]
[1751295382583,0.69117003,107120.0,107110.0,1.25350417]
[1751295382986,0.69117003,107120.0,107110.0,0.49170417]
[1751295383190,0.50242495,107120.0,107110.0,0.91126222]
[1751295383482,1.23868203,107120.0,107110.0,0.87405605]
[1751295383692,1.23868203,107120.0,107110.0,1.08857982]
[1751295383887,0.87788203,107120.0,107110.0,1.08857982]
[1751295384089,0.87788203,107120.0,107110.0,1.08857975]
[1751295384900,0.87788203,107120.0,107110.0,1.06081615]
[1751295385398,1.23868203,107120.0,107110.0,1.06081615]
[1751295386093,1.23868203,107120.0,107110.0,1.01445555]
[1751295386287,0.87788203,107120.0,107110.0,0.98660288]
[1751295386493,0.69117003,107120.0,107110.0,1.40308706]
[1751295386687,0.31571295,107120.0,107110.0,1.40308706]
[1751295386886,0.30571295,107120.0,107110.0,1.40308706]
[1751295387081,0.30571295,107120.0,107110.0,1.36596428]
[1751295387885,0.30571295,107120.0,107110.0,1.00516428]
[1751295388086,0.30571295,107120.0,107110.0,1.36596428]
[1751295389296,0.30571295,107120.0,107110.0,1.4397768]
[1751295389595,0.68117003,107120.0,107110.0,1.4397768]
[1751295390297,0.30571295,107120.0,107110.0,1.4397768]
[1751295390497,0.30571295,107120.0,107110.0,1.0789768]
[1751295390698,0.30571295,107120.0,107110.0,1.4397768]
[1751295392501,0.30571295,107120.0,107110.0,1.4399276]
[1751295392997,0.68117003,107120.0,107110.0,0.6781276]
[1751295393298,0.68117003,107120.0,107110.0,1.4376476]
[1751295393601,0.30571295,107120.0,107110.0,1.4376476]
[1751295393804,0.68117003,107120.0,107110.0,1.4376476]
[1751295395188,0.68117003,107120.0,107110.0,1.4375476]
[1751295395801,0.68117003,107120.0,107110.0,1.0767476]
[1751295396102,0.68117003,107120.0,107110.0,1.4375476]
[1751295396598,0.68117003,107120.0,107110.0,1.0776876]
[1751295396804,0.68117003,107120.0,107110.0,0.1304475]
[1751295397004,1.06197003,107120.0,107110.0,1.0743277]
[1751295397212,1.04197003,107120.0,107110.0,0.8876475]
[1751295398299,1.04197003,107120.0,107110.0,1.0743277]
[1751295398708,1.04197003,107120.0,107110.0,0.8876475]
[1751295398908,1.04197003,107120.0,107110.0,1.0743277]
[1751295399209,1.04197003,107120.0,107110.0,0.8876475]
[1751295399405,1.75202483,107120.0,107100.0,1.67120895]
[1751295399602,0.63763728,107110.0,107100.0,1.85790655]
[1751295400804,0.2631802,107110.0,107100.0,1.86090655]
[1751295400994,0.63863728,107110.0,107100.0,1.10462655]
[1751295401198,0.63863728,107110.0,107100.0,1.86090655]
[1751295401599,0.2631802,107110.0,107100.0,2.22170655]
[1751295402405,0.2631802,107110.0,107100.0,2.25970655]
[1751295403102,0.2631802,107110.0,107100.0,2.33286584]
[1751295403503,0.2631802,107110.0,107100.0,2.25853689]
[1751295404409,0.2631802,107110.0,107100.0,1.89773689]
[1751295404908,0.2631802,107110.0,107100.0,2.25853689]
[1751295405307,0.2631802,107110.0,107100.0,1.97206584]
[1751295406410,0.2631802,107110.0,107100.0,2.37066584]
[1751295407012,0.2258802,107110.0,107100.0,2.37066584]
[1751295407213,0.2258802,107110.0,107100.0,2.40756584]
[1751295407602,0.2639802,107110.0,107100.0,2.40756564]
[1751295408613,0.2639802,107110.0,107100.0,2.04676564]
[1751295409213,0.2639802,107110.0,107100.0,1.97206564]
[1751295409409,0.63943728,107110.0,107100.0,1.97206564]
[1751295410513,0.2639802,107110.0,107100.0,1.89773669]
[1751295411009,0.2639802,107110.0,107100.0,2.25853669]
[1751295411313,0.2639802,107110.0,107100.0,2.33803669]
[1751295413708,0.2639802,107110.0,107100.0,2.41236564]
[1751295413905,0.58359432,107110.0,107100.0,1.93406564]
[1751295414408,0.58359432,107110.0,107100.0,0.99108824]
[1751295414611,1.28439432,107110.0,107100.0,1.66899929]
[1751295414810,0.1866974,107100.0,107090.0,0.16723236]
[1751295415008,1.30201152,107100.0,107090.0,0.82652895]
[1751295415210,0.1867322,107080.0,107070.0,0.20494716]
[1751295415414,1.26391414,107080.0,107070.0,0.2043245]
[1751295415616,1.37881414,107080.0,107070.0,0.2043245]
[1751295415811,0.1867497,107070.0,107060.0,1.14974]
[1751295416011,0.78256382,107070.0,107060.0,1.14974]
[1751295416311,0.4629497,107070.0,107060.0,0.9755871]
[1751295416513,0.2629497,107070.0,107060.0,1.3362271]
[1751295416713,0.58256382,107070.0,107060.0,1.14946]
[1751295417016,0.94336382,107070.0,107060.0,0.9754271]
[1751295417211,0.90346382,107070.0,107060.0,1.00400049]
[1751295417410,0.5838497,107070.0,107060.0,1.04150049]
[1751295417617,0.54266382,107070.0,107060.0,1.04150049]
[1751295417809,0.2230497,107070.0,107060.0,1.40230049]
[1751295418408,0.2230497,107070.0,107060.0,1.44020049]
[1751295418608,0.2230497,107070.0,107060.0,1.07940049]
[1751295418919,0.22938405,107070.0,107060.0,1.09140049]
[1751295419720,0.22938405,107070.0,107060.0,1.16654268]
[1751295419914,0.22938405,107070.0,107060.0,1.52734268]
[1751295420713,0.19308405,107070.0,107060.0,1.52734268]
[1751295420914,0.19308405,107070.0,107060.0,1.15021466]
[1751295421112,0.00633435,107070.0,107060.0,1.90205466]
[1751295422021,0.20350052,107080.0,107070.0,0.1867502]
[1751295422220,0.20350052,107080.0,107070.0,1.00038218]
[1751295422419,0.01676782,107080.0,107070.0,1.00038218]
[1751295422615,0.20350052,107080.0,107070.0,1.00038218]
[1751295423416,0.20750052,107080.0,107070.0,1.01338218]
[1751295424319,0.2333874,107100.0,107090.0,0.1867153]
[1751295424521,0.23276474,107100.0,107090.0,1.35508822]
[1751295424723,0.23276474,107100.0,107090.0,1.43218822]
[1751295425223,0.23276474,107100.0,107090.0,1.47008822]
[1751295425426,0.27306474,107100.0,107090.0,1.47008822]
[1751295425625,0.27406474,107100.0,107090.0,1.4937017]
[1751295426020,0.27406474,107100.0,107090.0,0.5552664]
[1751295426226,0.68879672,107100.0,107090.0,0.8120944]
[1751295426525,0.68879672,107100.0,107090.0,0.9987697]
[1751295427230,0.68879672,107100.0,107090.0,1.3595697]
[1751295427425,0.31396474,107100.0,107090.0,1.3595697]
[1751295428127,0.31396474,107100.0,107090.0,0.6083697]
[1751295428323,0.31396474,107100.0,107090.0,1.3559297]
[1751295428718,0.31396474,107100.0,107090.0,1.3000753]
[1751295429326,0.23376474,107100.0,107090.0,1.3745417]
[1751295429527,0.23376474,107100.0,107090.0,1.4559417]
[1751295429824,0.27316474,107100.0,107090.0,1.4559417]
[1751295430025,0.31276474,107100.0,107090.0,1.4559417]
[1751295430217,0.31276474,107100.0,107090.0,1.43734227]
[1751295431627,0.31276474,107100.0,107090.0,0.42166697]
[1751295431827,0.31276474,107100.0,107090.0,0.80790697]
[1751295431828,1.04839672,107100.0,107090.0,0.80790697]
[1751295432831,1.54514872,107100.0,107090.0,0.06086697]
[1751295433136,0.0466804,107090.0,107080.0,0.5988]
[1751295433435,0.1867328,107080.0,107070.0,1.66112374]
[1751295433627,1.30086478,107080.0,107070.0,1.66112374]
[1751295433827,1.34116478,107080.0,107070.0,1.66112374]
[1751295434934,1.34116478,107080.0,107070.0,1.58665734]
[1751295435336,1.34516478,107080.0,107070.0,1.60365734]
[1751295436339,1.34516478,107080.0,107070.0,1.64091702]
[1751295436734,1.37359096,107080.0,107070.0,1.64091702]
[1751295436935,1.34516478,107080.0,107070.0,1.64091702]
[1751295437745,1.34516478,107080.0,107070.0,1.82766722]
[1751295438749,0.98436478,107080.0,107070.0,1.82766722]
[1751295439049,0.98436478,107080.0,107070.0,1.79040754]
[1751295442152,0.98436478,107080.0,107070.0,1.60365734]
[1751295442349,1.34516478,107080.0,107060.0,0.02857339]
[1751295442542,1.14781167,107070.0,107060.0,0.74464]
[1751295442744,1.24119447,107070.0,107060.0,0.74464]
[1751295443342,0.88039447,107070.0,107060.0,0.74464]
[1751295443548,1.24119447,107070.0,107060.0,0.74464]
[1751295444150,0.88039447,107070.0,107060.0,0.9314076]
[1751295444547,0.88239447,107070.0,107060.0,0.9314076]
[1751295445948,0.95888042,107070.0,107060.0,1.2922076]
[1751295446659,0.95888042,107070.0,107060.0,0.9314076]
[1751295446862,1.31968042,107070.0,107060.0,0.74464]
[1751295447060,1.31968042,107070.0,107060.0,0.9314076]
[1751295447260,0.95888042,107070.0,107060.0,0.9314076]
[1751295447663,1.31968042,107070.0,107060.0,0.74464]
[1751295448157,1.34968042,107070.0,107060.0,0.74464]
[1751295448547,0.97484844,107070.0,107060.0,0.74464]
[1751295448752,0.1867677,107060.0,107050.0,0.0009341]
[1751295448952,1.00229968,107060.0,107050.0,0.0009341]
[1751295449159,1.67729968,107060.0,107050.0,0.0009341]
[1751295449452,1.86729968,107060.0,107050.0,0.0009341]
[1751295450055,1.87129968,107060.0,107050.0,0.0009341]
[1751295450254,2.05811568,107060.0,107050.0,0.0009341]
[1751295450457,2.15811568,107060.0,107050.0,0.0009341]
[1751295450856,2.15811568,107060.0,107050.0,1e-07]
[1751295451759,0.1867851,107050.0,107040.0,2e-08]
[1751295451952,1.84184397,107050.0,107040.0,2e-08]
[1751295452155,2.27868397,107050.0,107040.0,2e-08]
[1751295452356,2.39621199,107050.0,107040.0,2e-08]
[1751295452959,2.03068397,107050.0,107040.0,2e-08]
[1751295453158,2.77280397,107050.0,107040.0,2e-08]
[1751295453665,2.77272397,107050.0,107040.0,2e-08]
[1751295454067,3.27272397,107050.0,107040.0,2e-08]
[1751295454566,3.52272397,107050.0,107040.0,2e-08]
[1751295455363,2.52298001,107050.0,107040.0,2e-08]
[1751295455562,2.46277199,107050.0,107040.0,2e-08]
[1751295455860,1.86901199,107050.0,107040.0,2e-08]
[1751295456064,2.42291199,107050.0,107040.0,2e-08]
[1751295456264,1.51871199,107050.0,107040.0,2e-08]
[1751295456564,1.01871199,107050.0,107040.0,0.03800002]
[1751295456764,1.35871199,107050.0,107040.0,0.03800002]
[1751295456968,2.02038397,107050.0,107040.0,2e-08]
[1751295458470,2.52038397,107050.0,107040.0,2e-08]
[1751295462771,0.1868375,107020.0,107010.0,0.18258]
[1751295462966,0.93942804,107020.0,107010.0,0.06616729]
[1751295463169,1.01962804,107020.0,107010.0,0.06616729]
[1751295463561,1.37962804,107020.0,107010.0,0.06616729]
[1751295463766,1.41912804,107020.0,107010.0,0.06616729]
[1751295464267,1.42312804,107020.0,107010.0,0.06616729]
[1751295464465,1.42312804,107020.0,107010.0,9e-08]
[1751295464663,1.92312804,107020.0,107010.0,9e-08]
[1751295467069,1.94835608,107020.0,107010.0,9e-08]
[1751295467864,2.23524408,107020.0,107010.0,9e-08]
[1751295469364,2.23524408,107020.0,106980.0,0.03713244]
[1751295469365,0.0467151,107010.0,106980.0,0.03713244]
[1751295469571,0.92252178,106990.0,106980.0,0.15683244]
[1751295469772,0.93922804,106990.0,106980.0,0.15608662]
[1751295470368,0.93922804,106990.0,106980.0,0.1197]
[1751295470574,1.36972804,106990.0,106980.0,0.1197]
[1751295470875,1.37472804,106990.0,106980.0,0.1197]
[1751295471281,1.37478224,106990.0,106960.0,0.07540129]
[1751295471472,1.28335678,106970.0,106960.0,0.05664081]
[1751295471672,1.27063578,106970.0,106960.0,0.00093489]
[1751295471874,0.58903578,106970.0,106960.0,0.00093489]
[1751295472075,0.60386776,106970.0,106960.0,0.08203489]
[1751295472275,0.96466776,106970.0,106960.0,0.08203489]
[1751295472577,0.93948902,106970.0,106960.0,0.08203489]
[1751295472881,0.97748902,106970.0,106960.0,0.08203489]
[1751295473082,1.30248902,106970.0,106960.0,0.08203489]
[1751295473279,1.30248902,106970.0,106960.0,0.00093489]
[1751295473478,1.34198902,106970.0,106960.0,0.00093489]
[1751295473985,1.36702532,106970.0,106960.0,0.00093489]
[1751295474189,1.86702532,106970.0,106960.0,0.00093489]
[1751295475479,2.05400132,106970.0,106960.0,0.00093489]
[1751295476186,1.67916934,106970.0,106960.0,0.00093489]
[1751295476487,0.0049,106960.0,106900.0,0.22911721]
[1751295476685,0.5478298,106910.0,106900.0,0.27219755]
[1751295476989,0.5478298,106910.0,106900.0,0.04901575]
[1751295476990,0.54174973,106910.0,106900.0,0.04901575]
[1751295477183,0.55174973,106910.0,106900.0,0.04901575]
[1751295477579,0.62614973,106910.0,106900.0,0.04901575]
[1751295477780,0.62622504,106910.0,106900.0,0.04901575]
[1751295478090,0.2337783,106920.0,106910.0,0.1870298]
[1751295478292,0.2337783,106920.0,106910.0,0.04308034]
[1751295478594,0.23384393,106920.0,106910.0,0.40388034]
[1751295478887,0.2337783,106920.0,106910.0,0.47918034]
[1751295479890,0.7337783,106920.0,106910.0,0.66620894]
[1751295480282,0.7387783,106920.0,106910.0,0.66620894]
[1751295480485,0.7387783,106920.0,106910.0,0.04308034]
[1751295480682,0.7387783,106920.0,106910.0,0.11838034]
[1751295480880,0.6920233,106920.0,106910.0,0.30540934]
[1751295481088,0.6920233,106920.0,106910.0,0.66620934]
[1751295481289,0.505,106920.0,106910.0,0.66620934]
[1751295481484,0.233731,106940.0,106930.0,0.186994]
[1751295481684,0.1402265,106950.0,106930.0,0.10444096]
[1751295481888,0.1869765,106940.0,106930.0,0.16699566]
[1751295482086,0.1869765,106940.0,106930.0,0.64068966]
[1751295482793,0.18705991,106940.0,106930.0,1.41332966]
[1751295482988,0.1869765,106940.0,106930.0,1.41732966]
[1751295483292,0.56180848,106940.0,106930.0,1.23033566]
[1751295483590,0.95760848,106940.0,106930.0,0.34321566]
[1751295483889,0.2219765,106940.0,106930.0,0.34321566]
[1751295484092,0.2219765,106940.0,106930.0,0.53020966]